bitfinex-derivatives/quotes_SOLF0:USTF0_20250919
["timestamp","ask_amount","ask_price","bid_price","bid_amount"]
[1758318058370,6.7687224,238.21,238.16,3.7767]
[1758318059473,6.7687224,238.21,238.17,6.62]
[1758318059868,6.7687224,238.21,238.16,3.7767]
[1758318060874,6.7687224,238.21,238.17,6.62]
[1758318061366,6.7687224,238.21,238.16,3.7767]
[1758318061764,6.7687224,238.21,238.17,6.62]
[1758318061969,6.7687224,238.21,238.16,3.7767]
[1758318062174,6.7687224,238.21,238.17,6.62]
[1758318062471,0.0287224,238.21,238.17,6.62]
[1758318062673,0.0287224,238.21,238.16,3.7767]
[1758318062976,0.0287224,238.21,238.17,6.62]
[1758318063774,0.0287224,238.21,238.16,3.7767]
[1758318063974,0.0287224,238.21,238.17,6.62]
[1758318064170,0.0287224,238.21,238.16,3.7767]
[1758318064368,0.0287224,238.21,238.17,6.62]
[1758318064877,0.0287224,238.21,238.16,3.7767]
[1758318064878,6.7087224,238.21,238.16,3.7767]
[1758318065175,6.7087224,238.21,238.17,6.62]
[1758318065373,6.7087224,238.21,238.16,3.7767]
[1758318065670,6.7087224,238.21,238.17,6.62]
[1758318065975,6.7087224,238.21,238.16,3.7767]
[1758318066170,6.7087224,238.21,238.17,6.62]
[1758318066476,6.7087224,238.21,238.16,3.7767]
[1758318066670,6.7087224,238.21,238.17,6.62]
[1758318067275,6.7087224,238.21,238.16,3.7767]
[1758318067776,6.7087224,238.21,238.17,6.62]
[1758318068171,11.42735434,238.21,238.16,3.7767]
[1758318068477,11.42735434,238.21,238.17,6.62]
[1758318068672,11.42735434,238.21,238.16,3.7767]
[1758318069178,11.42735434,238.21,238.17,6.62]
[1758318069374,6.7087224,238.21,238.17,6.62]
[1758318069876,6.7087224,238.21,238.16,3.7767]
[1758318070075,6.7087224,238.21,238.17,6.62]
[1758318070377,6.7087224,238.21,238.16,3.7767]
[1758318070577,6.7087224,238.21,238.17,6.62]
[1758318070778,6.7087224,238.21,238.16,3.7767]
[1758318070977,6.7087224,238.21,238.17,6.62]
[1758318071172,6.7087224,238.21,238.16,3.7767]
[1758318071878,6.68,238.2,238.17,6.62]
[1758318072278,6.68,238.2,238.16,3.7767]
[1758318072579,0.0287224,238.21,238.17,6.62]
[1758318072878,9.60086545,238.2,238.17,6.62]
[1758318073177,2.92086545,238.19,238.17,6.62]
[1758318073376,2.92086545,238.18,238.17,6.62]
[1758318082886,9.60086545,238.18,238.15,6.62]
[1758318083085,2.92086545,238.17,238.14,3.777]
[1758318083385,2.92086545,238.16,238.15,6.62]
[1758318093795,9.89086545,238.16,238.11,6.99]
[1758318094097,9.89086545,238.15,238.11,6.99]
[1758318094399,2.92086545,238.14,238.11,6.99]
[1758318094596,2.92086545,238.13,238.11,6.99]
[1758318094901,2.92086545,238.12,238.11,6.99]
[1758318095697,2.92086545,238.12,238.07,102.84]
[1758318095998,6.97,238.1,238.07,102.84]
[1758318096295,2.92086545,238.09,238.08,6.99]
[1758318096694,2.92086545,238.09,238.03,3.7788]
[1758318096997,9.89086545,238.08,237.99,102.82]
[1758318097199,2.92086545,238.07,238.0,6.99]
[1758318097398,2.92086545,238.06,238.0,6.99]
[1758318097704,2.92086545,238.05,238.01,6.99]
[1758318097905,2.92086545,238.04,238.01,6.99]
[1758318098097,2.92086545,238.03,238.01,6.99]
[1758318098303,2.92086545,238.02,238.01,6.99]
[1758318098503,6.99744657,238.06,238.01,6.99]
[1758318098706,2.92086545,238.05,238.01,6.99]
[1758318098905,9.89086545,238.05,238.01,6.99]
[1758318099104,2.92086545,238.04,238.01,6.99]
[1758318099306,2.92086545,238.04,238.0,3.7792]
[1758318099510,2.92086545,238.04,238.01,6.99]
[1758318099695,2.92086545,238.04,238.0,3.7792]
[1758318100206,2.92086545,238.04,238.01,6.99]
[1758318101505,2.92086545,238.04,238.0,3.7792]
[1758318101707,2.92086545,238.04,238.01,6.99]
[1758318101901,2.92086545,238.04,238.0,3.7792]
[1758318102309,2.92086545,238.04,238.01,6.99]
[1758318102715,2.92086545,238.04,238.0,3.7792]
[1758318103006,2.92086545,238.04,238.01,6.99]
[1758318103394,2.92086545,238.04,238.0,3.7792]
[1758318103595,2.92086545,238.04,238.01,6.99]
[1758318104001,6.97,238.03,238.01,6.99]
[1758318104706,6.99744657,238.06,238.0,10.7692]
[1758318104898,6.97,238.04,238.01,6.99]
[1758318105102,2.98208778,238.03,238.01,6.99]
[1758318105302,6.97,238.04,238.01,6.99]
[1758318105502,2.98133223,238.03,238.01,6.99]
[1758318105702,2.98133223,238.02,238.01,6.99]
[1758318106010,2.98133223,238.03,238.0,3.7792]
[1758318106304,2.98133223,238.03,238.01,6.99]
[1758318107208,2.98133223,238.03,238.0,3.7792]
[1758318107406,2.98133223,238.03,238.01,6.99]
[1758318107613,2.98133223,238.03,238.0,3.7792]
[1758318107906,2.98133223,238.03,238.01,6.99]
[1758318108304,2.98133223,238.03,238.0,3.7792]
[1758318109003,2.9792902,238.02,238.0,3.7792]
[1758318109204,6.97,238.04,238.01,6.99]
[1758318109409,2.9792902,238.03,238.01,6.99]
[1758318109612,2.9792902,238.02,238.01,6.99]
[1758318111813,6.97,238.04,238.01,6.99]
[1758318112014,2.97727026,238.03,238.01,6.99]
[1758318112313,6.97,238.04,238.01,6.99]
[1758318112514,2.9768673,238.03,238.01,6.99]
[1758318112715,6.97,238.04,238.01,6.99]
[1758318112916,2.9768673,238.03,238.01,6.99]
[1758318113218,6.97,238.04,238.01,6.99]
[1758318113514,2.97677686,238.03,238.01,6.99]
[1758318113811,6.97,238.04,238.01,6.99]
[1758318114013,2.97648263,238.03,238.01,6.99]
[1758318114313,6.97,238.04,238.01,6.99]
[1758318114507,2.97617023,238.03,238.0,3.7792]
[1758318114708,6.97,238.04,238.0,3.7792]
[1758318114908,2.97617023,238.03,238.01,6.99]
[1758318115108,6.97,238.04,238.01,6.99]
[1758318115409,2.97617023,238.03,238.01,6.99]
[1758318115707,6.97,238.04,238.01,6.99]
[1758318115908,2.97595948,238.03,238.01,6.99]
[1758318116105,6.97,238.04,238.01,6.99]
[1758318116308,2.97595948,238.03,238.01,6.99]
[1758318116502,6.97,238.04,238.01,6.99]
[1758318116707,2.97580264,238.03,238.0,3.7792]
[1758318116907,6.97,238.04,238.0,3.7792]
[1758318117108,2.97580264,238.03,238.01,6.99]
[1758318117306,6.97,238.04,238.0,3.7792]
[1758318117612,2.97571415,238.03,238.01,6.99]
[1758318117813,6.97,238.04,238.01,6.99]
[1758318118016,2.97571415,238.03,238.01,6.99]
[1758318118215,6.97,238.04,238.01,6.99]
[1758318118514,2.97571415,238.03,238.01,6.99]
[1758318118813,6.97,238.04,238.01,6.99]
[1758318119016,2.97579062,238.03,238.01,6.99]
[1758318119314,6.97,238.04,238.01,6.99]
[1758318119514,9.73578186,238.03,238.01,6.99]
[1758318119713,6.76,238.03,238.01,6.99]
[1758318120116,0.02744657,238.06,238.0,3.7792]
[1758318120306,6.76,238.04,238.01,7.22]
[1758318120510,2.97578186,238.03,238.0,3.7792]
[1758318120816,0.02744657,238.06,238.02,7.22]
[1758318121016,0.02744657,238.06,238.04,7.22]
[1758318121510,0.02744657,238.06,238.05,7.22]
[1758318121715,6.76,238.17,238.05,7.22]
[1758318121911,2.97546227,238.16,238.05,7.22]
[1758318122113,2.97546227,238.15,238.05,7.22]
[1758318122315,2.97546227,238.14,238.05,7.22]
[1758318122613,2.97546227,238.13,238.05,7.22]
[1758318122817,2.97546227,238.12,238.1,3.7776]
[1758318123114,2.97546227,238.11,238.1,10.9976]
[1758318123314,6.76,238.17,238.1,10.9976]
[1758318123315,2.97546227,238.16,238.1,10.9976]
[1758318124017,6.76,238.14,238.11,7.22]
[1758318124220,2.97546227,238.13,238.11,7.22]
[1758318124712,3.39546227,238.13,238.1,0.03126449]
[1758318124917,6.76,238.11,238.1,0.03126449]
[1758318125118,9.73546227,238.11,238.1,0.03126449]
[1758318135521,14.45409421,238.11,238.1,0.03126449]
[1758318137432,9.73546227,238.11,238.1,0.03126449]
[1758318139132,14.44393499,238.11,238.1,0.03126449]
[1758318139328,9.73546227,238.11,238.1,0.03126449]
[1758318141834,2.97546227,238.11,238.1,7.25126449]
[1758318152342,2.95738238,238.11,238.1,7.25126449]
[1758318157239,9.58738238,238.11,238.1,0.03126449]
[1758318162846,9.58738238,238.11,238.1,10.49896449]
[1758318162847,2.95738238,238.11,238.1,10.49896449]
[1758318163053,2.95738238,238.11,238.1,10.91896449]
[1758318175359,2.95738238,238.11,238.1,4.22896449]
[1758318175565,9.58738238,238.11,238.1,3.80896449]
[1758318183073,2.95738238,238.11,238.1,10.71896449]
[1758318193773,2.95738238,238.11,238.1,113.21896449]
[1758318198384,8.238e-05,238.11,238.1,113.21896449]
[1758318198579,4.71343872,238.21,238.17,6.91]
[1758318198781,4.71343872,238.22,238.19,6.91]
[1758318199079,7.26,238.22,238.18,102.48]
[1758318199281,11.97343872,238.26,238.19,6.91]
[1758318199882,11.97343872,238.26,238.22,3.7756]
[1758318200179,11.97343872,238.26,238.24,6.91]
[1758318201185,7.26,238.26,238.24,6.91]
[1758318202284,7.26,238.26,238.24,10.6854]
[1758318207089,7.26,238.28,238.25,6.91]
[1758318207290,4.71343872,238.29,238.25,6.91]
[1758318207685,7.26,238.28,238.24,3.7754]
[1758318207984,7.26,238.28,238.25,0.02823617]
[1758318208694,4.71343872,238.29,238.25,0.02823617]
[1758318208885,4.71343872,238.3,238.26,102.42]
[1758318209089,5.44419341,238.32,238.26,102.42]
[1758318209387,6.97,238.31,238.28,7.08]
[1758318209684,6.97,238.31,238.26,102.42]
[1758318209988,6.97,238.31,238.28,7.08]
[1758318210291,0.73075469,238.32,238.28,7.08]
[1758318210489,2.91012921,238.31,238.28,7.08]
[1758318210692,9.88012921,238.3,238.28,7.08]
[1758318210989,2.91012921,238.29,238.28,7.08]
[1758318211189,2.91012921,238.29,238.27,3.775]
[1758318211486,2.91012921,238.28,238.27,3.775]
[1758318222890,9.88012921,238.28,238.27,3.775]
[1758318224492,6.97,238.27,238.26,102.42]
[1758318224795,9.88012921,238.27,238.26,102.42]
[1758318225599,9.88012921,238.27,238.25,0.02823617]
[1758318225792,9.88012921,238.26,238.25,0.02823617]
[1758318233602,2.91012921,238.26,238.25,0.02823617]
[1758318233797,2.91012921,238.26,238.25,7.10823617]
[1758318239191,2.91012921,238.26,238.25,0.02823617]
[1758318239904,2.91012921,238.26,238.25,6.78823617]
[1758318248010,2.91012921,238.26,238.25,10.56353617]
[1758318264015,9.55012921,238.26,238.25,3.80353617]
[1758318264215,2.91012921,238.26,238.25,3.80353617]
[1758318264521,2.91012921,238.26,238.25,10.56353617]
[1758318274929,2.91012921,238.26,238.2,58.7392]
[1758318274930,9.99012921,238.26,238.2,7.04]
[1758318275136,7.08,238.24,238.2,7.04]
[1758318275438,9.99012921,238.23,238.17,7.04]
[1758318275639,2.91012921,238.22,238.16,160.9688]
[1758318275839,2.91012921,238.21,238.17,7.04]
[1758318276031,4.71343872,238.27,238.2,7.04]
[1758318276632,4.71343872,238.28,238.2,7.04]
[1758318276830,4.71343872,238.28,238.24,3.7754]
[1758318277037,7.08,238.27,238.24,10.8154]
[1758318277331,11.79343872,238.27,238.24,10.8154]
[1758318277731,7.08,238.27,238.24,10.8154]
[1758318280339,7.08,238.27,238.25,7.04]
[1758318280737,4.74012215,238.28,238.24,3.7754]
[1758318281339,4.74012215,238.28,238.26,10.8151]
[1758318283542,11.82012215,238.28,238.26,10.8151]
[1758318285741,7.10668343,238.28,238.26,10.8151]
[1758318297355,0.02668343,238.28,238.27,7.04]
[1758318301851,4.74012215,238.28,238.27,7.04]
[1758318302248,0.02668343,238.28,238.27,7.04]
[1758318302457,4.74012215,238.28,238.27,7.04]
[1758318303456,0.02668343,238.28,238.27,7.04]
[1758318321476,7.76064729,238.36,238.27,7.04]
[1758318321477,4.71343872,238.35,238.27,7.04]
[1758318322772,4.71343872,238.35,238.32,3.7742]
[1758318322966,11.74343872,238.35,238.33,7.17]
[1758318325076,7.03,238.35,238.33,7.17]
[1758318325874,4.71343872,238.37,238.33,7.17]
[1758318326069,4.71343872,238.37,238.32,3.80619409]
[1758318326272,4.71343872,238.37,238.32,10.97619409]
[1758318327175,7.03,238.36,238.32,10.97619409]
[1758318327582,4.71343872,238.37,238.32,10.97619409]
[1758318328382,7.03,238.36,238.32,10.97619409]
[1758318328582,6.78,238.36,238.32,10.97619409]
[1758318328779,6.78,238.36,238.32,10.59619409]
[1758318328977,4.71343872,238.37,238.35,6.79]
[1758318329182,6.78,238.41,238.35,6.79]
[1758318329183,11.49343872,238.38,238.35,6.79]
[1758318329879,6.78,238.38,238.35,6.79]
[1758318331876,11.49343872,238.38,238.35,6.79]
[1758318332982,11.49343872,238.38,238.36,6.79]
[1758318333185,6.78,238.38,238.36,6.79]
[1758318333378,11.49343872,238.38,238.36,6.79]
[1758318333583,4.71343872,238.38,238.35,3.7736]
[1758318333782,11.49343872,238.39,238.35,3.7736]
[1758318333980,11.49343872,238.39,238.36,6.79]
[1758318334882,11.49343872,238.39,238.36,10.5634]
[1758318335086,11.49343872,238.39,238.37,6.79]
[1758318336889,6.78,238.39,238.37,6.79]
[1758318337280,4.71343872,238.4,238.36,3.7734]
[1758318337785,4.71343872,238.41,238.36,3.7734]
[1758318337978,11.49343872,238.41,238.37,6.79]
[1758318338488,11.49343872,238.41,238.38,6.79]
[1758318338687,6.78,238.4,238.38,6.79]
[1758318340193,11.49343872,238.4,238.38,6.79]
[1758318340586,4.71343872,238.41,238.37,0.03220261]
[1758318340792,4.71343872,238.42,238.38,6.79]
[1758318340988,11.49343872,238.42,238.37,0.03220261]
[1758318341194,11.49343872,238.42,238.38,6.79]
[1758318341393,11.49343872,238.42,238.37,0.03220261]
[1758318341694,11.49343872,238.42,238.38,6.79]
[1758318341895,11.49343872,238.42,238.39,6.79]
[1758318343198,11.49343872,238.42,238.38,3.7731]
[1758318343498,11.49343872,238.42,238.39,6.79]
[1758318343697,11.49343872,238.42,238.38,3.7731]
[1758318344100,11.49343872,238.42,238.39,6.79]
[1758318344301,6.78,238.42,238.39,6.79]
[1758318344500,11.49343872,238.42,238.39,6.79]
[1758318344899,11.49343872,238.42,238.38,3.7731]
[1758318345297,6.78,238.42,238.39,6.79]
[1758318345499,6.78,238.42,238.38,3.7731]
[1758318345695,6.78,238.42,238.39,6.79]
[1758318345896,6.78,238.42,238.38,3.7731]
[1758318346394,6.78,238.42,238.39,6.79]
[1758318346599,6.78,238.42,238.38,3.7731]
[1758318347497,6.78,238.42,238.39,6.79]
[1758318347700,6.78,238.42,238.38,3.7731]
[1758318348002,6.78,238.42,238.39,6.79]
[1758318348201,11.49343872,238.42,238.39,6.79]
[1758318348604,11.49343872,238.42,238.38,3.7731]
[1758318349104,11.49343872,238.42,238.39,6.79]
[1758318349905,11.49343872,238.42,238.38,3.7731]
[1758318350200,11.49343872,238.42,238.39,6.79]
[1758318351006,11.49343872,238.42,238.38,3.7731]
[1758318351206,11.49343872,238.42,238.39,6.79]
[1758318351905,6.78,238.42,238.39,6.79]
[1758318352405,6.78,238.42,238.38,3.7731]
[1758318352604,6.78,238.42,238.39,6.79]
[1758318355606,6.78,238.42,238.38,3.7731]
[1758318355804,6.78,238.42,238.39,6.79]
[1758318356101,102.0,238.48,238.39,3.773]
[1758318356102,4.71343872,238.44,238.39,3.773]
[1758318356307,4.71343872,238.46,238.4,6.79]
[1758318356702,11.49343872,238.46,238.4,6.79]
[1758318357007,4.71343872,238.46,238.41,6.82156413]
[1758318357608,6.78,238.45,238.41,0.03156413]
[1758318357908,6.78,238.45,238.42,6.79]
[1758318358108,4.71343872,238.46,238.42,6.79]
[1758318358310,6.78,238.45,238.42,6.79]
[1758318358505,7.14,238.45,238.42,6.79]
[1758318358706,7.14,238.46,238.42,6.79]
[1758318359010,4.71343872,238.47,238.42,6.79]
[1758318359199,6.95,238.46,238.42,6.79]
[1758318359508,4.71343872,238.47,238.42,6.79]
[1758318359909,6.95,238.46,238.42,6.79]
[1758318360110,4.71343872,238.47,238.42,6.79]
[1758318360506,6.95,238.46,238.42,6.79]
[1758318361401,4.71343872,238.47,238.42,6.79]
[1758318361809,4.71343872,238.48,238.42,6.79]
[1758318363413,6.95,238.47,238.42,6.79]
[1758318363613,4.71343872,238.48,238.42,6.79]
[1758318364211,6.95,238.47,238.42,6.79]
[1758318364410,4.71343872,238.48,238.42,6.79]
[1758318364713,6.95,238.47,238.42,7.23]
[1758318364909,11.66343872,238.48,238.42,7.23]
[1758318365217,11.66343872,238.48,238.44,7.23]
[1758318365407,6.95,238.47,238.44,7.23]
[1758318365812,4.71343872,238.48,238.44,7.23]
[1758318366414,6.95,238.47,238.44,7.23]
[1758318367015,4.71343872,238.48,238.44,7.23]
[1758318367915,6.95,238.47,238.44,7.23]
[1758318370508,4.71343872,238.48,238.44,7.23]
[1758318370711,6.95,238.47,238.44,7.23]
[1758318371012,4.71343872,238.49,238.43,3.7724]
[1758318371316,11.66343872,238.49,238.43,11.0024]
[1758318371518,6.95,238.49,238.43,11.0024]
[1758318375320,6.95,238.49,238.41,0.03156413]
[1758318375624,11.66343872,238.47,238.41,0.03156413]
[1758318376818,6.95,238.44,238.41,0.03156413]
[1758318377020,4.71343872,238.47,238.41,0.03156413]
[1758318377021,6.95,238.46,238.41,0.03156413]
[1758318377219,4.71343872,238.47,238.41,0.03156413]
[1758318377422,6.95,238.46,238.41,0.03156413]
[1758318379218,11.66343872,238.46,238.41,0.03156413]
[1758318379525,6.95,238.45,238.41,0.03156413]
[1758318379824,8.48533872,238.47,238.41,0.03156413]
[1758318380018,4.71343872,238.46,238.41,0.03156413]
[1758318380216,6.95,238.45,238.41,0.03156413]
[1758318380414,4.71343872,238.46,238.41,0.03156413]
[1758318380617,6.95,238.45,238.41,0.03156413]
[1758318380813,6.95,238.43,238.41,0.03156413]
[1758318381017,4.71343872,238.44,238.41,0.03156413]
[1758318381817,6.95,238.43,238.41,0.03156413]
[1758318382522,11.66343872,238.43,238.41,0.03156413]
[1758318382719,6.95,238.42,238.41,0.03156413]
[1758318384218,6.95,238.42,238.34,3.7739]
[1758318388430,6.95,238.41,238.34,11.0039]
[1758318389123,7.13,238.42,238.34,11.0039]
[1758318389320,10.9028,238.42,238.34,7.23]
[1758318389528,7.13,238.41,238.31,10.6742]
[1758318389733,8.48623872,238.42,238.31,10.6742]
[1758318390230,7.13,238.38,238.31,10.6742]
[1758318392231,0.02977686,238.39,238.31,10.6742]
[1758318392433,7.13,238.38,238.31,10.6742]
[1758318392634,0.02977686,238.39,238.31,10.6742]
[1758318392934,7.13,238.38,238.31,10.6742]
[1758318394629,7.13,238.38,238.32,6.9]
[1758318404146,7.13,238.38,238.31,3.7742]
[1758318404747,7.13,238.38,238.31,10.6742]
[1758318407350,7.13,238.38,238.31,3.7742]
[1758318407553,7.13,238.38,238.32,6.9]
[1758318422063,11.84343872,238.38,238.32,6.9]
[1758318424864,15.61683872,238.38,238.32,6.9]
[1758318428264,11.33343872,238.37,238.29,3.7746]
[1758318428467,11.33343872,238.37,238.3,6.83]
[1758318430667,4.71343872,238.36,238.3,6.83]
[1758318431261,4.71343872,238.36,238.29,3.7746]
[1758318431462,6.62,238.34,238.27,10.605]
[1758318431663,6.62,238.33,238.27,10.605]
[1758318432063,0.02704454,238.32,238.27,3.775]
[1758318432268,6.62,238.31,238.28,6.83]
[1758318433165,0.02704454,238.32,238.28,6.83]
[1758318434874,6.62,238.31,238.28,6.83]
[1758318435075,0.02704454,238.32,238.28,6.83]
[1758318435476,6.62,238.31,238.28,6.83]
[1758318435673,0.02704454,238.32,238.28,6.83]
[1758318435873,6.62,238.31,238.28,6.83]
[1758318440681,6.62,238.31,238.25,3.7753]
[1758318441078,6.62,238.31,238.26,6.83]
[1758318441478,6.62,238.31,238.25,3.7753]
[1758318443074,6.62,238.31,238.26,6.83]
[1758318443279,6.64704454,238.32,238.26,6.83]
[1758318446883,0.02704454,238.32,238.26,6.83]
[1758318447773,0.02704454,238.32,238.3,3.7744]
[1758318447977,0.02704454,238.32,238.31,6.83]
[1758318452182,4.71343872,238.39,238.33,3.774]
[1758318452376,4.71343872,238.39,238.31,6.83]
[1758318453685,11.33343872,238.4,238.31,6.83]
[1758318453888,11.33343872,238.4,238.34,3.7738]
[1758318454087,6.8,238.39,238.34,3.7738]
[1758318454484,6.8,238.39,238.34,3.80287093]
[1758318454687,6.8,238.39,238.35,6.72]
[1758318455082,6.8,238.39,238.34,3.80287093]
[1758318455886,6.8,238.39,238.35,6.72]
[1758318456288,6.8,238.39,238.34,3.80287093]
[1758318456591,4.71343872,238.41,238.34,3.80287093]
[1758318456790,6.8,238.4,238.34,10.52287093]
[1758318457189,6.8,238.4,238.35,3.7736]
[1758318457391,6.8,238.4,238.36,6.72]
[1758318457695,6.8,238.4,238.35,3.7736]
[1758318458484,6.8,238.4,238.36,6.72]
[1758318458690,6.8,238.41,238.35,10.4936]
[1758318466200,11.51343872,238.43,238.34,0.02907093]
[1758318466394,6.8,238.41,238.34,0.02907093]
[1758318472701,10.5726,238.41,238.34,0.02907093]
[1758318475111,6.8,238.41,238.35,6.72]
[1758318484118,11.51343872,238.41,238.35,6.72]
[1758318485015,4.71343872,238.4,238.35,6.72]
[1758318485521,6.56,238.4,238.35,6.84]
[1758318485817,6.56,238.4,238.34,6.86907093]
[1758318487118,11.27343872,238.4,238.34,6.86907093]
[1758318490215,11.27343872,238.39,238.35,6.84]
[1758318491020,11.27343872,238.39,238.34,0.02907093]
[1758318491215,4.71343872,238.39,238.34,0.02907093]
[1758318491419,4.71343872,238.4,238.34,0.02907093]
[1758318491629,4.71343872,238.42,238.35,6.84]
[1758318491925,6.56,238.43,238.38,6.84]
[1758318492121,4.71343872,238.44,238.38,6.84]
[1758318493224,11.27343872,238.45,238.38,6.84]
[1758318496128,6.56,238.45,238.38,6.84]
[1758318497024,11.27343872,238.45,238.38,6.84]
[1758318497827,6.56,238.45,238.38,6.84]
[1758318498024,11.27343872,238.45,238.38,6.84]
[1758318498225,6.56,238.45,238.38,6.84]
[1758318499032,6.56,238.45,238.38,10.6129]
[1758318501630,6.56,238.45,238.39,6.84]
[1758318501830,6.56,238.45,238.39,3.7727]
[1758318502025,6.56,238.45,238.4,6.84]
[1758318502230,6.56,238.45,238.39,3.7727]
[1758318502633,6.56,238.46,238.4,6.84]
[1758318503321,6.56,238.46,238.41,0.03008402]
[1758318503527,4.71343872,238.47,238.41,0.03008402]
[1758318503934,6.56,238.46,238.42,6.84]
[1758318504834,6.56,238.46,238.41,0.03008402]
[1758318505135,6.56,238.46,238.42,6.84]
[1758318505430,6.56,238.46,238.41,0.03008402]
[1758318505626,6.56,238.46,238.42,6.84]
[1758318505829,6.56,238.46,238.42,3.7722]
[1758318506026,6.56,238.46,238.43,6.84]
[1758318508634,6.56,238.46,238.43,6.77]
[1758318509726,6.56,238.46,238.42,3.7722]
[1758318509932,52.55486435,238.5,238.44,6.77]
[1758318513240,11.84343872,238.5,238.44,6.77]
[1758318513543,7.13,238.5,238.44,6.77]
[1758318514044,11.84343872,238.5,238.44,6.77]
[1758318517746,7.13,238.5,238.44,6.77]
[1758318518448,11.84343872,238.5,238.44,6.77]
[1758318531055,4.71343872,238.49,238.44,6.77]
[1758318531257,4.71343872,238.49,238.43,3.7721]
[1758318531952,11.84343872,238.49,238.44,6.77]
[1758318532151,11.84343872,238.49,238.43,10.5421]
[1758318533155,11.84343872,238.48,238.44,6.77]
[1758318533358,11.84343872,238.48,238.43,3.7721]
[1758318534354,11.84343872,238.48,238.44,6.77]
[1758318534756,11.84343872,238.48,238.43,3.7721]
[1758318535060,7.13,238.47,238.44,6.77]
[1758318536055,11.84343872,238.47,238.43,3.7721]
[1758318536262,11.84343872,238.47,238.44,6.77]
[1758318536654,4.71343872,238.47,238.44,6.77]
[1758318536960,11.84343872,238.47,238.44,6.77]
[1758318537762,11.84343872,238.47,238.43,3.7721]
[1758318537958,11.84343872,238.47,238.44,6.77]
[1758318538463,11.84343872,238.47,238.44,6.54]
[1758318539063,11.84343872,238.47,238.43,3.7721]
[1758318539361,7.14,238.46,238.44,6.57]
[1758318541069,11.85343872,238.46,238.44,6.57]
[1758318541968,7.14,238.46,238.44,6.57]
[1758318544279,4.71343872,238.47,238.44,10.3421]
[1758318544478,7.14,238.46,238.44,10.3421]
[1758318546472,11.85343872,238.46,238.44,10.3421]
[1758318554785,11.85343872,238.46,238.44,6.57]
[1758318558289,4.71343872,238.46,238.41,0.03008402]
[1758318558590,7.14,238.42,238.41,0.03008402]
[1758318558988,11.85343872,238.42,238.41,0.03008402]
[1758318559189,7.14,238.42,238.41,0.03008402]
[1758318565389,11.85343872,238.42,238.41,0.03008402]
[1758318566087,7.14,238.42,238.41,0.03008402]
[1758318567291,14.64838933,238.42,238.41,0.03008402]
[1758318567490,14.64838933,238.42,238.31,6.57]
[1758318567695,7.14,238.38,238.31,6.57]
[1758318568792,0.03145436,238.37,238.31,6.57]
[1758318569090,7.25,238.36,238.31,6.57]
[1758318570195,0.03145436,238.37,238.31,6.57]
[1758318570593,7.25,238.36,238.31,6.57]
[1758318570990,0.03145436,238.37,238.31,6.57]
[1758318571190,7.25,238.36,238.31,6.57]
[1758318571700,7.25,238.36,238.29,6.7]
[1758318579700,7.25,238.36,238.29,10.4744]
[1758318580302,3.80475436,238.37,238.29,10.4744]
[1758318580698,7.25,238.36,238.29,10.4744]
[1758318582504,7.25,238.36,238.3,6.7]
[1758318583201,7.25,238.36,238.29,3.7744]
[1758318584403,0.03145436,238.37,238.27,10.4748]
[1758318584898,3.80485436,238.37,238.27,10.4748]
[1758318585100,7.25,238.36,238.27,10.4748]
[1758318585306,3.80485436,238.37,238.27,10.4748]